fUSD/lending_fUSD_20260118
["ID","MTS","AMOUNT","RATE_DAILY","PERIOD"]
[402662189,1768765832868,-5642.87193086,0.00016321,2]
[402662190,1768765832880,-607.56498033,0.00016321,2]
[402662191,1768765832891,-1331.26324519,0.00016321,2]
[402662192,1768765832904,-3757.54575348,0.00016321,2]
[402662193,1768765832918,-3074.14409014,0.00016321,2]
[402662194,1768765832928,-165.47,0.00016324,2]
[402662195,1768765832938,-1258.70575351,0.00016341,2]
[402662196,1768765832950,-1013.08682692,0.00016341,2]
[402662197,1768765832961,-293.48857706,0.00016341,2]
[402662198,1768765832973,-871.98025582,0.00016341,2]
[402662199,1768765832985,-390.29344023,0.00016341,2]
[402662200,1768765832997,-947.96197807,0.00016341,2]
[402662201,1768765833017,-96810.16826839,0.00016341,2]
[402662202,1768765833027,-500.0,0.00016356,2]
[402662203,1768765833037,-500.0,0.00016356,2]
[402662204,1768765833047,-600.0,0.00016356,2]
[402662205,1768765833056,-83066.6,0.0001644,2]
[402662206,1768765833066,-150.0,0.00016457,2]
[402662207,1768765833077,-1000.0,0.00016521,2]
[402662208,1768765833087,-302.34277429,0.00016521,2]
[402662209,1768765833097,-1000.0,0.00016521,2]
[402662210,1768765833107,-1000.0,0.00016521,2]
[402662211,1768765833117,-1000.0,0.00016521,2]
[402662212,1768765833127,-1000.0,0.00016521,2]
[402662213,1768765833136,-1000.0,0.00016521,2]
[402662214,1768765833146,-634.4,0.00016521,2]
[402662215,1768765833155,-200.0,0.00016552,2]
[402662216,1768765833165,-150.0,0.00016714,2]
[402662217,1768765833175,-634.4,0.00016795,2]
[402662218,1768765833186,-28721.02,0.00016922,2]
[402662219,1768765833195,-776.62,0.00016922,2]
[402662220,1768765833204,-5473.12,0.00016922,2]
[402662221,1768765833214,-150.0,0.00016971,2]
[402662222,1768765833224,-250.0,0.00017,2]
[402662223,1768765833235,-500.0,0.00017,6]
[402662224,1768765833244,-634.4,0.00017068,2]
[402662225,1768765833254,-1500.0,0.00017068,2]
[402662226,1768765833264,-1500.0,0.00017068,2]
[402662227,1768765833275,-1000.0,0.00017068,2]
[402662228,1768765833284,-500.0,0.00017068,2]
[402662229,1768765833294,-1000.0,0.00017068,2]
[402662230,1768765833304,-518.0672994,0.00017068,2]
[402662231,1768765833313,-322.6107,0.00017099,2]
[402662232,1768765833323,-174.61919141,0.00017099,2]
[402662233,1768765833332,-9000.0,0.00017099,2]
[402662234,1768765833342,-1000.0,0.00017099,2]
[402662235,1768765833351,-9000.0,0.00017099,2]
[402662236,1768765833361,-250.0,0.00017099,2]
[402662237,1768765833370,-1000.0,0.00017099,2]
[402662238,1768765833379,-9000.0,0.00017099,2]
[402662239,1768765833389,-250.0,0.00017099,2]
[402662240,1768765833399,-1000.0,0.00017099,2]
[402662241,1768765833408,-1000.0,0.00017099,2]
[402662242,1768765833419,-250.0,0.00017099,2]
[402662243,1768765833428,-9000.0,0.00017099,2]
[402662244,1768765833438,-1000.0,0.00017099,2]
[402662245,1768765833448,-250.0,0.00017099,2]
[402662246,1768765833458,-5361.50483063,0.00017099,2]
[402662247,1768765833467,-250.0,0.00017099,2]
[402662248,1768765833476,-1000.0,0.00017099,2]
[402662249,1768765833486,-151.0,0.00017099,2]
[402662250,1768765833495,-1000.0,0.00017099,2]
[402662251,1768765833504,-302.96874146,0.00017099,2]
[402662252,1768765833514,-250.0,0.00017099,2]
[402662253,1768765833523,-1000.0,0.00017099,2]
[402662254,1768765833532,-250.0,0.00017099,2]
[402662255,1768765833542,-1000.0,0.00017099,2]
[402662256,1768765833551,-250.0,0.00017099,2]
[402662257,1768765833560,-1000.0,0.00017099,2]
[402662258,1768765833570,-250.0,0.00017099,2]
[402662259,1768765833579,-1000.0,0.00017099,2]
[402662260,1768765833589,-250.0,0.00017099,2]
[402662261,1768765833599,-250.0,0.00017099,2]
[402662262,1768765833608,-388.23561555,0.00017099,2]
[402662263,1768765833620,-500.0,0.00017099,2]
[402662264,1768765833631,-516.55849821,0.00017099,2]
[402662265,1768765833641,-574.12855637,0.00017099,2]
[402662266,1768765833650,-1999.0,0.00017099,2]
[402662267,1768765833661,-500.0,0.00017099,2]
[402662268,1768765833671,-500.0,0.00017099,2]
[402662269,1768765833681,-500.0,0.00017099,2]
[402662270,1768765833690,-250.0,0.00017099,2]
[402662271,1768765833699,-500.0,0.00017099,2]
[402662272,1768765833709,-250.0,0.00017099,2]
[402662273,1768765833719,-500.0,0.00017099,2]
[402662274,1768765833728,-250.0,0.00017099,2]
[402662275,1768765833738,-250.0,0.00017099,2]
[402662276,1768765833747,-250.0,0.00017099,2]
[402662277,1768765833757,-250.0,0.00017099,2]
[402662278,1768765833766,-500.0,0.00017099,2]
[402662279,1768765833776,-250.0,0.00017099,2]
[402662280,1768765833786,-500.0,0.00017099,2]
[402662281,1768765833795,-250.0,0.00017099,2]
[402662282,1768765833809,-500.0,0.00017099,2]
[402662283,1768765833819,-500.0,0.00017099,2]
[402662284,1768765833829,-500.0,0.00017099,2]
[402662285,1768765833838,-500.0,0.00017099,2]
[402662286,1768765833848,-250.0,0.00017099,2]
[402662287,1768765833858,-500.0,0.00017099,2]
[402662288,1768765833867,-250.0,0.00017099,2]
[402662289,1768765833877,-500.0,0.00017099,2]
[402662290,1768765833887,-500.0,0.00017099,2]
[402662291,1768765833897,-250.0,0.00017099,2]
[402662292,1768765833907,-500.0,0.00017099,2]
[402662293,1768765833916,-500.0,0.00017099,2]
[402662294,1768765833927,-500.0,0.00017099,2]
[402662295,1768765833937,-500.0,0.00017099,2]
[402662296,1768765833947,-500.0,0.00017099,2]
[402662297,1768765833957,-500.0,0.00017099,2]
[402662298,1768765833967,-500.0,0.00017099,2]
[402662299,1768765833977,-500.0,0.00017099,2]
[402662300,1768765833987,-620.0,0.00017099,2]
[402662301,1768765833997,-1500.0,0.00017099,2]
[402662302,1768765834007,-1500.0,0.00017099,2]
[402662303,1768765834017,-1500.0,0.00017099,2]
[402662304,1768765834027,-1500.0,0.00017099,2]
[402662305,1768765834036,-1500.0,0.00017099,2]
[402662306,1768765834046,-1500.0,0.00017099,2]
[402662307,1768765834056,-1500.0,0.00017099,2]
[402662308,1768765834066,-1500.0,0.00017099,2]
[402662309,1768765834075,-1500.0,0.00017099,2]
[402662310,1768765834085,-1500.0,0.00017099,2]
[402662311,1768765834094,-12.74069722,0.00017099,2]
[402662312,1768765834108,-1487.25930278,0.00017099,2]
[402662313,1768765834117,-1073.54883212,0.000171,6]
[402662314,1768765834129,-26.45116788,0.000171,6]
[402662315,1768765834139,-808.01349314,0.00017136,2]
[402662316,1768765834151,-837.98650686,0.00017136,2]
[402662317,1768765834545,-645.79236201,0.000172,6]
[402662318,1768765834558,-1054.20763799,0.000172,6]
[402662319,1768765834567,-150.0,0.00017229,2]
[402662320,1768765834577,-1646.0,0.0001723,2]
[402662321,1768765834587,-1258.27,0.00017256,2]
[402662322,1768765834597,-467.79,0.00017256,2]
[402662323,1768765834606,-150.0,0.00017256,2]
[402662324,1768765834616,-935.58,0.00017256,2]
[402662325,1768765834629,-150.0,0.00017256,2]
[402662326,1768765834639,-1228.56,0.00017278,2]
[402662327,1768765834649,-2200.0,0.000173,6]
[402662328,1768765834658,-634.4,0.00017342,2]
[402662329,1768765834669,-162.33710457,0.0001738,2]
[402662330,1768765834679,-2800.0,0.000174,6]
[402662331,1768765834688,-279.7,0.00017413,2]
[402662332,1768765834699,-6522.49429099,0.00017434,2]
[402662333,1768765834708,-279.7,0.00017466,2]
[402662334,1768765834718,-1646.0,0.00017477,2]
[402662335,1768765834727,-150.0,0.00017486,2]
[402662336,1768765834737,-6522.49429095,0.00017486,2]
[402662337,1768765834748,-2000.0,0.000175,2]
[402662338,1768765834757,-500.0,0.000175,6]
[402662339,1768765834766,-279.7,0.0001752,2]
[402662340,1768765834781,-500.0,0.00017527,2]
[402662341,1768765834790,-500.0,0.00017527,2]
[402662342,1768765834800,-545.23461674,0.00017527,2]
[402662343,1768765834810,-183.53675278,0.00017527,2]
[402662344,1768765834822,-316.46324722,0.00017527,2]
[402662345,1768765834831,-500.0,0.00017527,2]
[402662346,1768765834840,-500.0,0.00017527,2]
[402662347,1768765834851,-500.0,0.00017527,2]
[402662348,1768765834860,-500.0,0.00017527,2]
[402662349,1768765834870,-107.96645635,0.00017527,2]
[402662350,1768765834882,-392.03354365,0.00017527,2]
[402662351,1768765834891,-16.22390955,0.00017527,2]
[402662352,1768765834902,-323.3292545,0.00017527,2]
[402662353,1768765838283,-351.88118535,0.00016764,2]
[402662354,1768765838387,-436.75223375,0.00016764,2]
[402662355,1768765838399,-1478.39503501,0.00016764,2]
[402662356,1768765838441,-251.80538329,0.00016764,2]
[402662357,1768765838453,-390.805764,0.00016764,2]
[402662368,1768765840326,-409.4703986,0.00016764,2]
[402662369,1768765840336,-288.67,0.00017308,2]
[402662370,1768765840345,-1646.0,0.00017528,2]
[402662371,1768765840354,-1000.0,0.00017534,2]
[402662373,1768765840363,-6522.49429095,0.00017538,2]
[402662375,1768765840372,-150.68169103,0.00017547,2]
[402662376,1768765840381,-590.0,0.00017551,2]
[402662377,1768765840393,-200.0,0.00017556,3]
[402662378,1768765840402,-500.0,0.00017562,2]
[402662379,1768765840412,-300.0,0.00017569,2]
[402662380,1768765840421,-250.0,0.00017569,2]
[402662381,1768765840430,-279.7,0.00017573,2]
[402662382,1768765840439,-2500.0,0.00017583,2]
[402662383,1768765840449,-6522.49429095,0.00017589,2]
[402662384,1768765840458,-5642.74682682,0.00017598,2]
[402662385,1768765840467,-500.0,0.000176,6]
[402662386,1768765840477,-590.0,0.00017604,2]
[402662387,1768765840486,-150.68169101,0.00017606,2]
[402662388,1768765840496,-634.4,0.00017616,2]
[402662389,1768765840505,-1699.70688493,0.00017616,2]
[402662390,1768765840515,-279.7,0.00017626,2]
[402662391,1768765840525,-5642.74682673,0.00017632,2]
[402662392,1768765840534,-1612.94477692,0.0001764,2]
[402662393,1768765840543,-6522.49429095,0.00017641,2]
[402662394,1768765840553,-181.08010149,0.00017647,2]
[402662395,1768765840562,-595.37131296,0.00017647,2]
[402662396,1768765840571,-150.68169101,0.00017665,2]
[402662397,1768765840580,-5642.74682673,0.00017665,2]
[402662398,1768765840590,-1000.0,0.00017677,2]
[402662399,1768765840599,-279.7,0.0001768,2]
[402662400,1768765840608,-1000.0,0.00017685,2]
[402662401,1768765840620,-6522.49429095,0.00017693,2]
[402662402,1768765840630,-1000.0,0.00017693,2]
[402662403,1768765840639,-1000.0,0.00017698,2]
[402662404,1768765840649,-5642.74682673,0.00017699,2]
[402662405,1768765840659,-671.0,0.00017699,2]
[402662406,1768765840668,-150.0,0.00017699,2]
[402662407,1768765840678,-1646.0,0.00017699,2]
[402662408,1768765840688,-1000.0,0.000177,2]
[402662409,1768765840698,-500.0,0.000177,6]
[402662410,1768765840708,-1000.0,0.00017701,2]
[402662411,1768765840718,-1000.0,0.00017704,2]
[402662412,1768765840727,-1000.0,0.0001771,2]
[402662413,1768765840737,-168.0,0.00017713,2]
[402662414,1768765840746,-1646.0,0.00017716,2]
[402662415,1768765840756,-1000.0,0.00017719,2]
[402662416,1768765840766,-150.68169101,0.00017724,2]
[402662417,1768765840775,-600.0,0.00017726,7]
[402662418,1768765840785,-5642.74682673,0.00017732,2]
[402662419,1768765840794,-279.7,0.00017733,2]
[402662420,1768765840803,-1000.0,0.00017737,2]
[402662421,1768765840813,-150.0,0.00017743,2]
[402662422,1768765840822,-590.0,0.00017744,2]
[402662423,1768765840831,-6522.49429095,0.00017745,2]
[402662424,1768765840841,-1000.0,0.00017745,2]
[402662425,1768765840850,-671.0,0.00017754,2]
[402662426,1768765840860,-150.0,0.00017754,2]
[402662427,1768765840869,-150.0,0.00017759,2]
[402662428,1768765840878,-5642.74682673,0.00017766,2]
[402662429,1768765840888,-1000.0,0.00017773,2]
[402662430,1768765840897,-590.0,0.0001778,2]
[402662431,1768765840906,-1000.0,0.00017781,2]
[402662432,1768765840915,-1000.0,0.00017781,2]
[402662433,1768765840924,-150.68169101,0.00017782,2]
[402662434,1768765840933,-1000.0,0.00017784,2]
[402662435,1768765840944,-279.7,0.00017787,2]
[402662436,1768765840953,-1000.0,0.00017795,2]
[402662437,1768765840962,-6522.49429095,0.00017796,2]
[402662438,1768765840971,-500.0,0.00017799,2]
[402662439,1768765840980,-5642.74682673,0.00017799,2]
[402662440,1768765840990,-1000.0,0.000178,2]
[402662441,1768765840999,-500.0,0.000178,6]
[402662442,1768765841009,-500.0,0.00017808,2]
[402662443,1768765841018,-500.0,0.00017808,2]
[402662444,1768765841027,-1000.0,0.00017808,2]
[402662445,1768765841036,-500.0,0.00017808,2]
[402662446,1768765841045,-1000.0,0.00017808,2]
[402662447,1768765841055,-671.0,0.00017809,2]
[402662448,1768765841064,-207.6752153,0.00017809,2]
[402662449,1768765841074,-1646.0,0.00017815,2]
[402662450,1768765841083,-1000.0,0.00017817,2]
[402662451,1768765841092,-168.0,0.00017818,2]
[402662452,1768765841101,-5642.74682673,0.00017833,2]
[402662453,1768765841111,-1000.0,0.00017836,2]
[402662454,1768765841120,-1000.0,0.00017839,2]
[402662455,1768765841130,-279.7,0.0001784,2]
[402662456,1768765841140,-438.983,0.00017841,2]
[402662457,1768765841149,-150.68169101,0.00017841,2]
[402662458,1768765841159,-1000.0,0.00017844,2]
[402662459,1768765841168,-1000.0,0.00017847,2]
[402662460,1768765841179,-6522.49429095,0.00017848,2]
[402662461,1768765841188,-1000.0,0.0001785,2]
[402662462,1768765841198,-200.0,0.00017852,2]
[402662463,1768765841207,-1000.0,0.00017852,2]
[402662464,1768765841217,-200.0,0.00017856,2]
[402662465,1768765841226,-1000.0,0.00017859,2]
[402662466,1768765841236,-1000.0,0.00017861,2]
[402662467,1768765841245,-306.00341146,0.00017862,2]
[402662468,1768765841254,-539.82628956,0.00017862,2]
[402662469,1768765841264,-807.54784429,0.00017862,2]
[402662470,1768765841273,-1092.6333,0.00017862,2]
[402662471,1768765841283,-500.0,0.00017863,2]
[402662472,1768765841292,-2789.31,0.00017863,7]
[402662473,1768765841301,-2789.31,0.00017863,7]
[402662474,1768765841311,-2789.31,0.00017863,7]
[402662475,1768765841320,-2789.31,0.00017863,7]
[402662476,1768765841329,-671.0,0.00017863,2]
[402662477,1768765841338,-5642.74682673,0.00017866,2]
[402662478,1768765841348,-1000.0,0.00017871,2]
[402662479,1768765841358,-1000.0,0.00017874,2]
[402662480,1768765841367,-1000.0,0.00017879,2]
[402662481,1768765841376,-1000.0,0.00017885,2]
[402662482,1768765841385,-1000.0,0.00017887,2]
[402662483,1768765841395,-634.40320039,0.0001789,2]
[402662484,1768765841404,-1000.0,0.00017891,2]
[402662485,1768765841413,-279.7,0.00017893,2]
[402662486,1768765841422,-10000.0,0.000179,2]
[402662487,1768765841431,-529.63928383,0.000179,2]
[402662488,1768765841440,-5800.0,0.000179,2]
[402662489,1768765841450,-25000.0,0.000179,3]
[402662490,1768765841459,-6522.49429095,0.000179,2]
[402662491,1768765841468,-431.43119673,0.000179,2]
[402662492,1768765841477,-431.43119673,0.000179,2]
[402662493,1768765841487,-431.43119673,0.000179,2]
[402662494,1768765841496,-1349.0,0.000179,2]
[402662495,1768765841505,-1169.0,0.000179,6]
[402662496,1768765841515,-150.68169101,0.000179,2]
[402662497,1768765841524,-5642.74682673,0.000179,2]
[402662498,1768765841533,-962.64259072,0.000179,2]
[402662499,1768765841543,-3111.0,0.000179,2]
[402662500,1768765841552,-1000.0,0.00017911,2]
[402662501,1768765841561,-302.80803961,0.00017918,2]
[402662502,1768765841571,-671.0,0.00017918,2]
[402662503,1768765841580,-150.0,0.00017923,2]
[402662504,1768765841589,-1000.0,0.00017929,2]
[402662505,1768765841599,-1000.0,0.00017935,2]
[402662506,1768765841608,-1000.0,0.00017939,2]
[402662507,1768765841618,-279.7,0.00017947,2]
[402662508,1768765841631,-200.0,0.00017947,2]
[402662509,1768765841640,-165.47,0.00017956,2]
[402662510,1768765841650,-150.0,0.00017958,2]
[402662511,1768765841660,-500.0,0.00017973,2]
[402662512,1768765841670,-500.0,0.00017973,2]
[402662513,1768765841680,-500.0,0.00017973,2]
[402662514,1768765841690,-150.0,0.00017973,2]
[402662515,1768765841702,-500.0,0.00017973,2]
[402662516,1768765841712,-500.0,0.00017973,2]
[402662517,1768765841722,-671.0,0.00017973,2]
[402662518,1768765841731,-500.0,0.00017973,2]
[402662519,1768765841741,-150.0,0.00017973,2]
[402662520,1768765841751,-163.41225826,0.00017999,2]
[402662521,1768765841761,-465.2153075,0.00017999,2]
[402662522,1768765841770,-150.0,0.00018,2]
[402662523,1768765841779,-2024560.47594218,0.00018,2]
[402662524,1768765841793,-5426.82916256,0.00018,2]
[402662525,1768765841804,-390.16137812,0.00018,2]
[402662526,1768765841839,-1368.08453927,0.00018,2]
[402662527,1768765841851,-23380.25365777,0.00018,2]
[402662528,1768765841863,-11210.77084716,0.00018,2]
[402662529,1768765841880,-511.45009229,0.00018,2]
[402662530,1768765841935,-276.871998,0.00018,2]
[402662531,1768765841955,-506.37642362,0.00018,2]
[402662532,1768765841972,-854.0836,0.00018,2]
[402662533,1768765841985,-5954.8,0.00018,2]
[402662534,1768765842287,-1361.29,0.00018,2]
[402662535,1768765842304,-443.24639711,0.00018,2]
[402662536,1768765842319,-4619.849466,0.00018,2]
[402662541,1768765843607,-65.18528418,0.00018,2]
[402662542,1768765843625,-4197.18904291,0.00018,2]
[402662543,1768765843639,-410.39994,0.00018,2]
[402662544,1768765843651,-345.0,0.00018,2]
[402662545,1768765843664,-340.981756,0.00018,2]
[402662546,1768765843676,-549.19859983,0.00018,2]
[402662555,1768765846214,-1500.55428708,0.00018,2]
[402662556,1768765846271,-845.0,0.00018,2]
[402662557,1768765846282,-945.83191163,0.00018,2]
[402662558,1768765846293,-2210.25629834,0.00018,2]
[402662559,1768765846304,-10068.09,0.00018,2]
[402662560,1768765846315,-337.05226346,0.00018,2]
[402662561,1768765846536,-999.0,0.00018,2]
[402662568,1768766965109,-476.46,0.00015437,2]
[402662569,1768766965131,-195.0,0.00015484,2]
[402662570,1768766965152,-250.0,0.00015532,2]
[402662571,1768766965174,-1074.0,0.00015627,2]
[402662572,1768766965194,-1091.53,0.00015627,2]
[402662573,1768766965223,-300.0,0.00015627,2]
[402662574,1768766965245,-300.0,0.00015627,2]
[402662575,1768766965267,-195.0,0.00015627,2]
[402662576,1768766965289,-600.0,0.00015627,2]
[402662577,1768766965310,-185.66149566,0.00015627,2]
[402662578,1768766965334,-500.0,0.00015628,2]
[402662579,1768766965357,-226.47881234,0.00015628,2]
[402662581,1768767031345,-273.52118766,0.00015628,2]
[402662582,1768767031355,-500.0,0.00015628,2]
[402662583,1768767031365,-500.0,0.00015628,2]
[402662584,1768767031376,-500.0,0.00015628,2]
[402662585,1768767031385,-500.0,0.00015628,2]
[402662586,1768767031395,-500.0,0.00015628,2]
[402662587,1768767031405,-500.0,0.00015628,2]
[402662588,1768767031416,-500.0,0.00015628,2]
[402662589,1768767031426,-500.0,0.00015628,2]
[402662590,1768767031435,-500.0,0.00015628,2]
[402662591,1768767031445,-612.38981483,0.00015628,2]
[402662592,1768767031455,-500.0,0.00015628,2]
[402662593,1768767031466,-3094.79355148,0.00015629,2]
[402662594,1768767031479,-804.0,0.00015629,2]
[402662595,1768767031495,-48710.92720475,0.00015629,2]
[402662596,1768767031511,-5445.0463125,0.00015629,2]
[402662597,1768767031522,-300.0,0.00015629,2]
[402662598,1768767031543,-4039.34587856,0.00015629,2]
[402662599,1768767031564,-18341.1777839,0.00015629,2]
[402662600,1768767031575,-4035.05288234,0.00015629,2]
[402662601,1768767031587,-4031.53528395,0.00015629,2]
[402662602,1768767031599,-18610.58523279,0.00015629,2]
[402662632,1768767037558,-5107.26586973,0.00015629,2]
[402662633,1768767037568,-297.45800502,0.00015676,2]
[402662634,1768767037578,-1091.53,0.00015901,2]
[402662635,1768767037591,-1000.0,0.00015918,2]
[402662636,1768767037601,-500.0,0.00015973,2]
[402662637,1768767037611,-502.60324195,0.00015973,2]
[402662638,1768767037622,-512.65188463,0.00015973,2]
[402662639,1768767037631,-500.0,0.00015973,2]
[402662640,1768767037641,-500.0,0.00015973,2]
[402662641,1768767037650,-500.9636083,0.00015973,2]
[402662642,1768767037660,-500.0,0.00015973,2]
[402662643,1768767037670,-500.0,0.00015973,2]
[402662644,1768767037679,-500.0,0.00015973,2]
[402662645,1768767037690,-500.0,0.00015973,2]
[402662646,1768767037699,-500.0,0.00015973,2]
[402662647,1768767037709,-500.0,0.00015973,2]
[402662648,1768767037718,-500.84549516,0.00015973,2]
[402662649,1768767037728,-500.0,0.00015973,2]
[402662650,1768767037737,-500.0,0.00015973,2]
[402662651,1768767037747,-500.0,0.00015973,2]
[402662652,1768767037757,-151.0,0.00016071,2]
[402662653,1768767037766,-151.0,0.00016071,2]
[402662654,1768767037776,-2500.0,0.00016121,2]
[402662655,1768767037786,-4244.840498,0.00016139,2]
[402662656,1768767037798,-9395.69968241,0.00016139,2]
[402662657,1768767037807,-1091.53,0.00016175,2]
[402662658,1768767037817,-150.0,0.000162,2]
[402662659,1768767037826,-150.0,0.000162,2]
[402662661,1768767037836,-150.0,0.000162,2]
[402662663,1768767037845,-150.0,0.000162,2]
[402662664,1768767037855,-150.0,0.000162,2]
[402662665,1768767037864,-150.0,0.000162,2]
[402662666,1768767037874,-150.0,0.000162,2]
[402662668,1768767037883,-911.27,0.00016239,2]
[402662669,1768767037893,-18775.76191805,0.0001624,2]
[402662670,1768767037902,-2048.46684043,0.00016335,2]
[402662671,1768767037916,-836.875,0.00016335,2]
[402662672,1768767037927,-1146.58616103,0.00016335,2]
[402662673,1768767037945,-3354.35483825,0.00016335,2]
[402662690,1768767039560,-3063.35789132,0.00016335,2]
[402662693,1768767039720,-3190.89944929,0.00016335,2]
[402662694,1768767039730,-500.0,0.0001634,2]
[402662695,1768767039740,-500.0,0.0001634,2]
[402662696,1768767039749,-500.0,0.0001634,2]
[402662697,1768767039759,-500.0,0.0001634,2]
[402662698,1768767039768,-500.0,0.0001634,2]
[402662699,1768767039778,-500.0,0.00016356,2]
[402662700,1768767039787,-500.0,0.00016356,2]
[402662701,1768767039797,-600.0,0.00016356,2]
[402662702,1768767039806,-500.0,0.00016356,2]
[402662703,1768767039815,-4028.30143363,0.00016424,2]
[402662704,1768767039828,-9697.57715935,0.00016424,2]
[402662705,1768767039843,-5049.88332504,0.00016424,2]
[402662706,1768767039853,-300.0,0.00016438,2]
[402662707,1768767039862,-300.0,0.00016438,2]
[402662708,1768767039872,-500.0,0.00016438,2]
[402662709,1768767039882,-500.0,0.00016438,2]
[402662710,1768767039891,-500.0,0.00016438,2]
[402662711,1768767039901,-500.0,0.00016438,2]
[402662712,1768767039910,-500.0,0.00016438,2]
[402662713,1768767039919,-500.0,0.00016438,2]
[402662714,1768767039929,-500.0,0.00016438,2]
[402662715,1768767039940,-500.0,0.00016438,2]
[402662716,1768767039949,-500.0,0.00016438,2]
[402662717,1768767039959,-500.0,0.00016438,2]
[402662718,1768767039969,-500.0,0.00016438,2]
[402662719,1768767039979,-500.0,0.00016438,2]
[402662720,1768767039989,-500.0,0.00016438,2]
[402662721,1768767039999,-500.0,0.00016438,2]
[402662722,1768767040009,-500.0,0.00016438,2]
[402662723,1768767040022,-500.0,0.00016438,2]
[402662724,1768767040032,-500.0,0.00016438,2]
[402662725,1768767040042,-500.0,0.00016438,2]
[402662726,1768767040052,-500.0,0.00016438,2]
[402662727,1768767040062,-500.0,0.00016438,2]
[402662728,1768767040071,-500.0,0.00016438,2]
[402662729,1768767040082,-489.78746637,0.00016438,2]
[402662730,1768767040092,-500.0,0.00016438,2]
[402662732,1768767040102,-500.0,0.00016438,2]
[402662733,1768767040111,-500.0,0.00016438,2]
[402662734,1768767040121,-500.0,0.00016438,2]
[402662735,1768767040133,-500.0,0.00016438,2]
[402662736,1768767040147,-30.89998027,0.00016438,2]
[402662737,1768767040166,-469.10001973,0.00016438,2]
[402662738,1768767040178,-500.0,0.00016438,2]
[402662739,1768767040187,-1226.95780966,0.00016438,2]
[402662740,1768767040197,-1226.95780966,0.00016438,2]
[402662741,1768767040206,-1226.95780966,0.00016438,2]
[402662742,1768767040215,-1226.95780966,0.00016438,2]
[402662743,1768767040224,-1226.95780966,0.00016438,2]
[402662744,1768767040234,-1226.95780966,0.00016438,2]
[402662745,1768767040243,-1226.95780966,0.00016438,2]
[402662746,1768767040253,-1226.95780966,0.00016438,2]
[402662747,1768767040264,-1226.95780966,0.00016438,2]
[402662748,1768767040273,-1226.95780966,0.00016438,2]
[402662749,1768767040283,-1226.95780966,0.00016438,2]
[402662750,1768767040292,-1226.95780966,0.00016438,2]
[402662751,1768767040301,-1226.95780966,0.00016438,2]
[402662752,1768767040311,-1226.95780966,0.00016438,2]
[402662753,1768767040321,-1226.95780966,0.00016438,2]
[402662754,1768767040330,-1226.95780966,0.00016438,2]
[402662755,1768767040339,-1226.95780966,0.00016438,2]
[402662756,1768767040350,-1226.95780966,0.00016438,2]
[402662757,1768767040359,-1226.95780966,0.00016438,2]
[402662758,1768767040368,-1226.95780966,0.00016438,2]
[402662759,1768767040377,-1226.95780966,0.00016438,2]
[402662760,1768767040386,-1226.95780966,0.00016438,2]
[402662761,1768767040395,-1226.95780966,0.00016438,2]
[402662762,1768767040404,-1226.95780966,0.00016438,2]
[402662763,1768767040413,-1226.95780966,0.00016438,2]
[402662764,1768767040422,-1226.95780966,0.00016438,2]
[402662765,1768767040434,-1226.95780966,0.00016438,2]
[402662766,1768767040444,-1226.95780966,0.00016438,2]
[402662767,1768767040453,-1226.95780966,0.00016438,2]
[402662768,1768767040463,-1226.95780966,0.00016438,2]
[402662769,1768767040473,-1226.95780966,0.00016438,2]
[402662770,1768767040483,-1226.95780966,0.00016438,2]